[Event "Live Chess"]
[Site "Chess.com"]
[Date "2024.06.02"]
[Round "-"]
[White "SavagePawn7"]
[Black "Dhaydon19"]
[Result "0-1"]
[WhiteElo "642"]
[BlackElo "2680"]
[TimeControl "300"]
[EndTime "22:35:55 PDT"]
[Termination "Dhaydon19 won by resignation"]

1. e4 {[%clk 0:04:52.8]} 1... c6 {[%clk 0:04:59.4]} 2. d4 {[%clk 0:04:50.6]}
2... d5 {[%clk 0:04:59.1]} 3. Nc3 {[%clk 0:04:48]} 3... dxe4 {[%clk 0:04:57.9]}
4. Bc4 {[%clk 0:04:46.4]} 4... Nf6 {[%clk 0:04:57.6]} 5. f3 {[%clk 0:04:44.2]}
5... exf3 {[%clk 0:04:56.7]} 6. Nxf3 {[%clk 0:04:43]} 6... e6 {[%clk 0:04:54.9]}
7. Bg5 {[%clk 0:04:37.9]} 7... Nbd7 {[%clk 0:04:52.4]} 8. O-O {[%clk 0:04:35.3]}
8... Be7 {[%clk 0:04:51.4]} 9. Ne5 {[%clk 0:04:21]} 9... Nxe5 {[%clk 0:04:43.9]}
10. Qg4 {[%clk 0:04:14.4]} 10... Nexg4 {[%clk 0:04:42.3]} 11. Bxf6 {[%clk
0:03:51.8]} 11... Bxf6 {[%clk 0:04:39.5]} 0-1

[Event "Live Chess"]
[Site "Chess.com"]
[Date "2024.06.02"]
[Round "-"]
[White "csgwoodpusher"]
[Black "Tatarinov_Maxim"]
[Result "0-1"]
[WhiteElo "1031"]
[BlackElo "2279"]
[TimeControl "300"]
[EndTime "22:36:39 PDT"]
[Termination "Tatarinov_Maxim won by resignation"]

1. d4 {[%clk 0:04:53.3]} 1... Nf6 {[%clk 0:04:58.5]} 2. Bf4 {[%clk 0:04:51.4]}
2... g6 {[%clk 0:04:53.6]} 3. e3 {[%clk 0:04:49.7]} 3... Bg7 {[%clk 0:04:53]} 4.
Bd3 {[%clk 0:04:38.6]} 4... d6 {[%clk 0:04:52.2]} 5. c3 {[%clk 0:04:37.6]} 5...
c5 {[%clk 0:04:50.9]} 6. Nf3 {[%clk 0:04:36.6]} 6... b6 {[%clk 0:04:50.2]} 7.
O-O {[%clk 0:04:34.8]} 7... Ba6 {[%clk 0:04:48.8]} 8. Bxa6 {[%clk 0:04:31.4]}
8... Nxa6 {[%clk 0:04:48.7]} 9. Nbd2 {[%clk 0:04:27.2]} 9... Nc7 {[%clk
0:04:47.7]} 10. Re1 {[%clk 0:04:25.9]} 10... O-O {[%clk 0:04:44.7]} 11. h3
{[%clk 0:04:22.8]} 11... Rc8 {[%clk 0:04:39]} 12. a4 {[%clk 0:04:20.1]} 12...
Nd7 {[%clk 0:04:33.6]} 13. Nh2 {[%clk 0:04:15.4]} 13... a6 {[%clk 0:04:32.4]}
14. b4 {[%clk 0:04:13]} 14... Nd5 {[%clk 0:04:27.8]} 15. bxc5 {[%clk 0:04:11.1]}
15... bxc5 {[%clk 0:04:23.1]} 16. Bg3 {[%clk 0:04:09.2]} 16... Nxc3 {[%clk
0:04:21.3]} 17. Qc2 {[%clk 0:04:05.2]} 17... cxd4 {[%clk 0:04:20.5]} 18. Qd3
{[%clk 0:03:53]} 18... Nc5 {[%clk 0:04:17.9]} 19. Qf1 {[%clk 0:03:48.7]} 19...
dxe3 {[%clk 0:04:14.4]} 20. fxe3 {[%clk 0:03:46.1]} 20... N3xa4 {[%clk
0:04:10.3]} 21. Rec1 {[%clk 0:03:41.7]} 21... Bxa1 {[%clk 0:04:03]} 22. Rxa1
{[%clk 0:03:38.9]} 22... Nc3 {[%clk 0:04:02]} 0-1

[Event "Live Chess"]
[Site "Chess.com"]
[Date "2024.06.02"]
[Round "-"]
[White "MagnersCarlsberg2870"]
[Black "Greenbecker"]
[Result "0-1"]
[WhiteElo "1821"]
[BlackElo "1744"]
[TimeControl "300"]
[EndTime "22:37:50 PDT"]
[Termination "Greenbecker won by resignation"]

1. d4 {[%clk 0:04:56.7]} 1... d5 {[%clk 0:04:57.3]} 2. e3 {[%clk 0:04:55.8]}
2... e6 {[%clk 0:04:55.3]} 3. Bd3 {[%clk 0:04:55]} 3... c5 {[%clk 0:04:52.2]} 4.
c3 {[%clk 0:04:53.9]} 4... Nc6 {[%clk 0:04:49.5]} 5. f4 {[%clk 0:04:51.9]} 5...
Nf6 {[%clk 0:04:48.1]} 6. Nd2 {[%clk 0:04:50.5]} 6... Be7 {[%clk 0:04:46.2]} 7.
Ngf3 {[%clk 0:04:49.7]} 7... O-O {[%clk 0:04:44.6]} 8. O-O {[%clk 0:04:48.8]}
8... a6 {[%clk 0:04:42.2]} 9. Ne5 {[%clk 0:04:47.2]} 9... c4 {[%clk 0:04:37.4]}
10. Bc2 {[%clk 0:04:46.2]} 10... Qc7 {[%clk 0:04:34]} 11. Rf3 {[%clk 0:04:45.1]}
11... b5 {[%clk 0:04:30.6]} 12. Rh3 {[%clk 0:04:43.9]} 12... b4 {[%clk
0:04:18.5]} 13. g4 {[%clk 0:04:42.5]} 13... g6 {[%clk 0:03:35.7]} 14. g5 {[%clk
0:04:36.1]} 14... Ne8 {[%clk 0:03:27.8]} 15. Qe1 {[%clk 0:04:33.7]} 15... Nxe5
{[%clk 0:03:24.2]} 16. Qh4 {[%clk 0:04:29.1]} 16... h5 {[%clk 0:03:19.4]} 17.
fxe5 {[%clk 0:04:25.7]} 17... Ng7 {[%clk 0:03:05.5]} 18. Nf1 {[%clk 0:04:13.2]}
18... Qd8 {[%clk 0:02:55.8]} 19. e4 {[%clk 0:04:11.8]} 19... bxc3 {[%clk
0:02:47.8]} 20. bxc3 {[%clk 0:04:10.4]} 20... Bb7 {[%clk 0:02:46]} 21. Ng3
{[%clk 0:04:04.5]} 21... dxe4 {[%clk 0:02:43.3]} 22. Bxe4 {[%clk 0:04:03.4]}
22... Bxe4 {[%clk 0:02:39.1]} 23. Nxe4 {[%clk 0:04:01.2]} 23... Nf5 {[%clk
0:02:31.3]} 24. Qf2 {[%clk 0:03:48.9]} 24... Qd5 {[%clk 0:02:22.9]} 25. Nf6+
{[%clk 0:03:36.4]} 25... Bxf6 {[%clk 0:02:19.7]} 26. gxf6 {[%clk 0:03:35.1]}
26... Qe4 {[%clk 0:02:09]} 27. Ba3 {[%clk 0:03:19.1]} 27... Rfb8 {[%clk
0:02:03.9]} 28. Re1 {[%clk 0:03:16.9]} 28... Rb1 {[%clk 0:01:58.9]} 29. Bc1
{[%clk 0:03:11]} 29... Qg4+ {[%clk 0:01:52.9]} 30. Qg2 {[%clk 0:02:45.6]} 30...
Qxg2+ {[%clk 0:01:30]} 31. Kxg2 {[%clk 0:02:43.7]} 31... Rab8 {[%clk 0:01:29.5]}
32. Bd2 {[%clk 0:02:19.4]} 32... Rxe1 {[%clk 0:01:25.5]} 33. Bxe1 {[%clk
0:02:18.5]} 33... Rb2+ {[%clk 0:01:24.3]} 34. Kf1 {[%clk 0:02:14.2]} 34... Rxa2
{[%clk 0:01:22.5]} 35. Rf3 {[%clk 0:02:00.1]} 35... Rxh2 {[%clk 0:01:18]} 36.
Kg1 {[%clk 0:01:56.2]} 36... Re2 {[%clk 0:01:11.5]} 37. Rf1 {[%clk 0:01:53.8]}
37... Ne3 {[%clk 0:01:05.1]} 38. Kh1 {[%clk 0:01:48.5]} 38... Nxf1 {[%clk
0:01:03.6]} 0-1

[Event "Live Chess"]
[Site "Chess.com"]
[Date "2024.06.02"]
[Round "-"]
[White "elephantgerrald"]
[Black "febray_27"]
[Result "0-1"]
[WhiteElo "808"]
[BlackElo "2048"]
[TimeControl "300"]
[EndTime "22:39:01 PDT"]
[Termination "febray_27 won by checkmate"]

1. e4 {[%clk 0:04:59.1]} 1... c5 {[%clk 0:04:57]} 2. Nf3 {[%clk 0:04:57.7]} 2...
e6 {[%clk 0:04:52.8]} 3. Nc3 {[%clk 0:04:56.5]} 3... a6 {[%clk 0:04:51.6]} 4.
Bc4 {[%clk 0:04:52.7]} 4... Nc6 {[%clk 0:04:50.6]} 5. O-O {[%clk 0:04:51.1]}
5... b5 {[%clk 0:04:50]} 6. Bd3 {[%clk 0:04:49.1]} 6... Nf6 {[%clk 0:04:48.8]}
7. a3 {[%clk 0:04:48.1]} 7... Bb7 {[%clk 0:04:47.9]} 8. b4 {[%clk 0:04:47.1]}
8... c4 {[%clk 0:04:46.6]} 9. Be2 {[%clk 0:04:45.5]} 9... g6 {[%clk 0:04:41.6]}
10. d3 {[%clk 0:04:44.1]} 10... cxd3 {[%clk 0:04:39.3]} 11. Bxd3 {[%clk
0:04:40.8]} 11... Bg7 {[%clk 0:04:38.9]} 12. Bf4 {[%clk 0:04:34.4]} 12... O-O
{[%clk 0:04:36]} 13. Bd6 {[%clk 0:04:32.1]} 13... Re8 {[%clk 0:04:33.8]} 14. Re1
{[%clk 0:04:27.1]} 14... Nh5 {[%clk 0:04:20.6]} 15. e5 {[%clk 0:04:17.4]} 15...
Nf4 {[%clk 0:04:17.4]} 16. g3 {[%clk 0:04:06.5]} 16... Nd5 {[%clk 0:04:00.5]}
17. Nxd5 {[%clk 0:04:01]} 17... exd5 {[%clk 0:04:00.4]} 18. a4 {[%clk
0:03:55.9]} 18... Nxb4 {[%clk 0:03:55.6]} 19. axb5 {[%clk 0:03:50.3]} 19... Nxd3
{[%clk 0:03:43.9]} 20. Qxd3 {[%clk 0:03:46.3]} 20... axb5 {[%clk 0:03:41.5]} 21.
Rxa8 {[%clk 0:03:44.1]} 21... Qxa8 {[%clk 0:03:39.1]} 22. Qxb5 {[%clk
0:03:42.6]} 22... Bc6 {[%clk 0:03:38.1]} 23. Qc5 {[%clk 0:03:40]} 23... h6
{[%clk 0:03:27.3]} 24. c4 {[%clk 0:03:34.1]} 24... dxc4 {[%clk 0:03:25]} 25.
Qxc4 {[%clk 0:03:33]} 25... Bxf3 {[%clk 0:03:23.4]} 26. Qf4 {[%clk 0:03:16.7]}
26... Bh1 {[%clk 0:03:12.4]} 27. e6 {[%clk 0:03:06.7]} 27... Qg2# {[%clk
0:03:10.8]} 0-1

[Event "Live Chess"]
[Site "Chess.com"]
[Date "2024.06.02"]
[Round "-"]
[White "KeithArkell"]
[Black "Duke_of_Bebington"]
[Result "1-0"]
[WhiteElo "2417"]
[BlackElo "1663"]
[TimeControl "300"]
[EndTime "22:39:12 PDT"]
[Termination "KeithArkell won by checkmate"]

1. d4 {[%clk 0:04:56]} 1... d5 {[%clk 0:04:55.2]} 2. Nf3 {[%clk 0:04:55.3]} 2...
Nf6 {[%clk 0:04:54]} 3. c4 {[%clk 0:04:55.2]} 3... c6 {[%clk 0:04:52.9]} 4. Nc3
{[%clk 0:04:54.1]} 4... dxc4 {[%clk 0:04:49]} 5. a4 {[%clk 0:04:51.9]} 5... e6
{[%clk 0:04:47.6]} 6. e3 {[%clk 0:04:50.6]} 6... Bd6 {[%clk 0:04:42.5]} 7. Bxc4
{[%clk 0:04:49.6]} 7... O-O {[%clk 0:04:40.4]} 8. e4 {[%clk 0:04:48.1]} 8... Be7
{[%clk 0:04:34]} 9. O-O {[%clk 0:04:40.3]} 9... b6 {[%clk 0:04:30.2]} 10. Bf4
{[%clk 0:04:37.1]} 10... Bb7 {[%clk 0:04:28.6]} 11. Qe2 {[%clk 0:04:33.2]} 11...
Nbd7 {[%clk 0:04:27]} 12. Rfd1 {[%clk 0:04:31.9]} 12... Rc8 {[%clk 0:04:24.7]}
13. h3 {[%clk 0:04:30.4]} 13... Ne8 {[%clk 0:04:07.6]} 14. a5 {[%clk 0:03:25.1]}
14... Ba8 {[%clk 0:03:41.5]} 15. axb6 {[%clk 0:03:18.5]} 15... Qxb6 {[%clk
0:03:24.4]} 16. b3 {[%clk 0:02:51.9]} 16... Bb4 {[%clk 0:03:18.1]} 17. Na4
{[%clk 0:02:49.5]} 17... Qb7 {[%clk 0:03:12.4]} 18. Ne5 {[%clk 0:02:37.7]} 18...
Nxe5 {[%clk 0:03:06.1]} 19. Bxe5 {[%clk 0:02:22.6]} 19... Nc7 {[%clk 0:02:40]}
20. Nc5 {[%clk 0:01:15.9]} 20... Bxc5 {[%clk 0:02:37.3]} 21. dxc5 {[%clk
0:01:15]} 21... Nb5 {[%clk 0:02:25.6]} 22. Rd3 {[%clk 0:01:11.9]} 22... Rfd8
{[%clk 0:02:22.4]} 23. Rad1 {[%clk 0:01:10.1]} 23... Qe7 {[%clk 0:02:17]} 24.
Qg4 {[%clk 0:00:55]} 24... Qf8 {[%clk 0:02:02.8]} 25. Rxd8 {[%clk 0:00:51.9]}
25... Rxd8 {[%clk 0:02:01.7]} 26. Rxd8 {[%clk 0:00:51]} 26... Qxd8 {[%clk
0:02:00.1]} 27. Qxg7# {[%clk 0:00:50.1]} 1-0

[Event "Live Chess"]
[Site "Chess.com"]
[Date "2024.06.02"]
[Round "-"]
[White "Greenbecker"]
[Black "Tatarinov_Maxim"]
[Result "0-1"]
[WhiteElo "1740"]
[BlackElo "2280"]
[TimeControl "300"]
[EndTime "22:39:19 PDT"]
[Termination "Tatarinov_Maxim won by resignation"]

1. e4 {[%clk 0:04:56.4]} 1... c5 {[%clk 0:04:58.6]} 2. Nc3 {[%clk 0:04:52.7]}
2... Nc6 {[%clk 0:04:55.9]} 3. g3 {[%clk 0:04:50.3]} 3... g6 {[%clk 0:04:54.7]}
4. Bg2 {[%clk 0:04:49.7]} 4... Bg7 {[%clk 0:04:54]} 5. Nge2 {[%clk 0:04:49]}
5... Nf6 {[%clk 0:04:53.2]} 6. O-O {[%clk 0:04:48.4]} 6... O-O {[%clk
0:04:52.4]} 7. d3 {[%clk 0:04:47.5]} 7... d6 {[%clk 0:04:51.9]} 8. Be3 {[%clk
0:04:45.7]} 8... Rb8 {[%clk 0:04:46.2]} 9. a4 {[%clk 0:04:43.5]} 9... a6 {[%clk
0:04:44.4]} 10. f4 {[%clk 0:04:39.7]} 10... Nd7 {[%clk 0:04:37.8]} 11. Kh1
{[%clk 0:04:37.2]} 11... b5 {[%clk 0:04:37]} 12. axb5 {[%clk 0:04:35.5]} 12...
axb5 {[%clk 0:04:36.9]} 13. Nd5 {[%clk 0:04:33.6]} 13... Bxb2 {[%clk 0:04:30.9]}
14. Ra6 {[%clk 0:04:20.3]} 14... Bxa6 {[%clk 0:04:26.8]} 0-1

[Event "Live Chess"]
[Site "Chess.com"]
[Date "2024.06.02"]
[Round "-"]
[White "Dhaydon19"]
[Black "Isambard_Thomas"]
[Result "1-0"]
[WhiteElo "2681"]
[BlackElo "2152"]
[TimeControl "300"]
[EndTime "22:39:59 PDT"]
[Termination "Dhaydon19 won by resignation"]

1. d4 {[%clk 0:04:58.1]} 1... Nf6 {[%clk 0:04:58.9]} 2. Nf3 {[%clk 0:04:57.6]}
2... d5 {[%clk 0:04:57.3]} 3. g3 {[%clk 0:04:57.1]} 3... c6 {[%clk 0:04:56.7]}
4. Bg2 {[%clk 0:04:56.6]} 4... Bg4 {[%clk 0:04:56]} 5. c3 {[%clk 0:04:56.1]}
5... e6 {[%clk 0:04:55.4]} 6. Nbd2 {[%clk 0:04:55.7]} 6... Bd6 {[%clk
0:04:54.8]} 7. O-O {[%clk 0:04:55.4]} 7... h5 {[%clk 0:04:54.1]} 8. h4 {[%clk
0:04:52.4]} 8... Nbd7 {[%clk 0:04:44.8]} 9. Re1 {[%clk 0:04:50.6]} 9... Qc7
{[%clk 0:04:40.7]} 10. e4 {[%clk 0:04:19.4]} 10... dxe4 {[%clk 0:04:35.4]} 11.
Nxe4 {[%clk 0:04:16.8]} 11... Nxe4 {[%clk 0:04:34.6]} 12. Rxe4 {[%clk
0:04:15.4]} 12... Bxg3 {[%clk 0:04:30.3]} 13. fxg3 {[%clk 0:04:13.2]} 13... Qxg3
{[%clk 0:04:28.2]} 14. Bf4 {[%clk 0:04:09.1]} 14... Bxf3 {[%clk 0:04:24.7]} 15.
Qxf3 {[%clk 0:04:06.8]} 15... Qxh4 {[%clk 0:03:46.8]} 16. Rae1 {[%clk
0:03:56.1]} 16... g5 {[%clk 0:03:27.6]} 17. Bc7 {[%clk 0:03:47.7]} 17... g4
{[%clk 0:03:23.1]} 18. Rxe6+ {[%clk 0:03:44.3]} 18... fxe6 {[%clk 0:03:16.4]}
19. Rxe6+ {[%clk 0:03:42.2]} 19... Qe7 {[%clk 0:03:01.1]} 20. Rxe7+ {[%clk
0:03:40.5]} 20... Kxe7 {[%clk 0:03:00.5]} 21. Qe4+ {[%clk 0:03:40]} 21... Kf7
{[%clk 0:02:53.9]} 22. Qf4+ {[%clk 0:03:38.9]} 22... Nf6 {[%clk 0:02:51.3]} 23.
Be5 {[%clk 0:03:36.8]} 1-0

[Event "Live Chess"]
[Site "Chess.com"]
[Date "2024.06.02"]
[Round "-"]
[White "WilliamofOrange16th"]
[Black "MagnersCarlsberg2870"]
[Result "1-0"]
[WhiteElo "1989"]
[BlackElo "1816"]
[TimeControl "300"]
[EndTime "22:41:42 PDT"]
[Termination "WilliamofOrange16th won by checkmate"]

1. e4 {[%clk 0:04:56.2]} 1... d6 {[%clk 0:04:57.2]} 2. d4 {[%clk 0:04:52.8]}
2... Nf6 {[%clk 0:04:56.1]} 3. Nc3 {[%clk 0:04:51.8]} 3... Nbd7 {[%clk
0:04:55.2]} 4. g4 {[%clk 0:04:43.3]} 4... e5 {[%clk 0:04:50.2]} 5. g5 {[%clk
0:04:38.1]} 5... exd4 {[%clk 0:04:45.5]} 6. Qxd4 {[%clk 0:04:32.5]} 6... Ng4
{[%clk 0:04:38.1]} 7. h3 {[%clk 0:04:25.5]} 7... Nge5 {[%clk 0:04:35.9]} 8. f4
{[%clk 0:04:20.9]} 8... Nc6 {[%clk 0:04:30.4]} 9. Qf2 {[%clk 0:04:13.8]} 9... h6
{[%clk 0:04:21]} 10. Nf3 {[%clk 0:04:04.9]} 10... f6 {[%clk 0:04:12.6]} 11. Qh4
{[%clk 0:03:56.5]} 11... Nb4 {[%clk 0:04:03.2]} 12. Qh5+ {[%clk 0:03:53.6]}
12... Ke7 {[%clk 0:04:00.7]} 13. Bc4 {[%clk 0:03:46.7]} 13... Nc5 {[%clk
0:03:47.6]} 14. Qf7# {[%clk 0:03:44]} 1-0

[Event "Live Chess"]
[Site "Chess.com"]
[Date "2024.06.02"]
[Round "-"]
[White "elephantgerrald"]
[Black "KeithArkell"]
[Result "0-1"]
[WhiteElo "808"]
[BlackElo "2417"]
[TimeControl "300"]
[EndTime "22:42:12 PDT"]
[Termination "KeithArkell won by checkmate"]

1. e4 {[%clk 0:04:58.4]} 1... c6 {[%clk 0:04:59]} 2. d4 {[%clk 0:04:56.2]} 2...
d5 {[%clk 0:04:58.9]} 3. e5 {[%clk 0:04:54.8]} 3... c5 {[%clk 0:04:57.9]} 4.
dxc5 {[%clk 0:04:53.5]} 4... Nc6 {[%clk 0:04:57.2]} 5. Nf3 {[%clk 0:04:51.7]}
5... Bg4 {[%clk 0:04:55.9]} 6. Be2 {[%clk 0:04:49.6]} 6... e6 {[%clk 0:04:55.3]}
7. O-O {[%clk 0:04:48.2]} 7... Bxf3 {[%clk 0:04:54.5]} 8. Bxf3 {[%clk
0:04:46.8]} 8... Bxc5 {[%clk 0:04:53.8]} 9. b3 {[%clk 0:04:42.9]} 9... Bd4
{[%clk 0:04:52.3]} 10. c3 {[%clk 0:04:39.3]} 10... Bxe5 {[%clk 0:04:51.5]} 11.
c4 {[%clk 0:04:33.4]} 11... Nf6 {[%clk 0:04:49.8]} 12. cxd5 {[%clk 0:04:32]}
12... Nxd5 {[%clk 0:04:48.8]} 13. Bxd5 {[%clk 0:04:30.4]} 13... Qxd5 {[%clk
0:04:47.9]} 14. Qxd5 {[%clk 0:04:29]} 14... exd5 {[%clk 0:04:47.3]} 15. Re1
{[%clk 0:04:28.1]} 15... O-O {[%clk 0:04:46.5]} 16. Bg5 {[%clk 0:04:20.6]} 16...
Bxa1 {[%clk 0:04:44.6]} 17. Nd2 {[%clk 0:04:17.7]} 17... Bc3 {[%clk 0:04:42.9]}
18. Re2 {[%clk 0:04:16.1]} 18... Bxd2 {[%clk 0:04:42.1]} 19. Rxd2 {[%clk
0:04:15]} 19... Rfe8 {[%clk 0:04:41.5]} 20. h3 {[%clk 0:04:12.4]} 20... d4
{[%clk 0:04:40.8]} 21. Rd3 {[%clk 0:04:09.1]} 21... f6 {[%clk 0:04:39.9]} 22.
Bf4 {[%clk 0:04:05.8]} 22... Re1+ {[%clk 0:04:37.7]} 23. Kh2 {[%clk 0:04:04.4]}
23... Re2 {[%clk 0:04:37]} 24. Rg3 {[%clk 0:04:02.8]} 24... Rxa2 {[%clk
0:04:33.2]} 25. Bh6 {[%clk 0:04:01.5]} 25... g6 {[%clk 0:04:32.1]} 26. f4 {[%clk
0:03:58.9]} 26... Kf7 {[%clk 0:04:31.1]} 27. f5 {[%clk 0:03:57]} 27... Re8
{[%clk 0:04:30.2]} 28. fxg6+ {[%clk 0:03:55.5]} 28... hxg6 {[%clk 0:04:30.1]}
29. h4 {[%clk 0:03:53.5]} 29... Re4 {[%clk 0:04:27.5]} 30. Kh3 {[%clk
0:03:52.2]} 30... Ra1 {[%clk 0:04:26.1]} 31. Rf3 {[%clk 0:03:44.7]} 31... Ne5
{[%clk 0:04:24.7]} 32. Kg3 {[%clk 0:03:42.2]} 32... Nxf3 {[%clk 0:04:22]} 33.
Kxf3 {[%clk 0:03:42.1]} 33... Ree1 {[%clk 0:04:19.1]} 34. Kg3 {[%clk 0:03:39.8]}
34... d3 {[%clk 0:04:17.7]} 35. Kh3 {[%clk 0:03:35.2]} 35... Re2 {[%clk
0:04:15.4]} 36. Kg3 {[%clk 0:03:32.3]} 36... d2 {[%clk 0:04:13.5]} 37. Bxd2
{[%clk 0:03:31.8]} 37... Rxd2 {[%clk 0:04:13.4]} 38. Kf3 {[%clk 0:03:30.9]}
38... Raa2 {[%clk 0:04:12.2]} 39. Ke3 {[%clk 0:03:29.8]} 39... Rxg2 {[%clk
0:04:11.2]} 40. Kf3 {[%clk 0:03:28.7]} 40... Rh2 {[%clk 0:04:09.6]} 41. Kg3
{[%clk 0:03:27.9]} 41... Raf2 {[%clk 0:04:08.5]} 42. Kg4 {[%clk 0:03:26.6]}
42... f5+ {[%clk 0:04:07.8]} 43. Kg5 {[%clk 0:03:25.6]} 43... Rhg2+ {[%clk
0:04:02.8]} 44. Kh6 {[%clk 0:03:24.4]} 44... Rg4 {[%clk 0:04:02.1]} 45. h5
{[%clk 0:03:20.7]} 45... Rh4 {[%clk 0:04:01.2]} 46. Kg5 {[%clk 0:03:17.2]} 46...
Rxh5# {[%clk 0:04:01.1]} 0-1

[Event "Live Chess"]
[Site "Chess.com"]
[Date "2024.06.02"]
[Round "-"]
[White "EPotapov05"]
[Black "AlanBstard10"]
[Result "1-0"]
[WhiteElo "1791"]
[BlackElo "1160"]
[TimeControl "300"]
[EndTime "22:42:23 PDT"]
[Termination "EPotapov05 won on time"]

1. d4 {[%clk 0:04:57]} 1... Nf6 {[%clk 0:04:57.9]} 2. c4 {[%clk 0:04:55.3]} 2...
c5 {[%clk 0:04:52.8]} 3. d5 {[%clk 0:04:53.5]} 3... b5 {[%clk 0:04:50.5]} 4.
cxb5 {[%clk 0:04:51.8]} 4... a6 {[%clk 0:04:48.6]} 5. bxa6 {[%clk 0:04:51.7]}
5... Qa5+ {[%clk 0:04:34.8]} 6. Bd2 {[%clk 0:04:45]} 6... Qb6 {[%clk 0:04:26.6]}
7. Bc3 {[%clk 0:04:40.1]} 7... Bxa6 {[%clk 0:04:04.1]} 8. e3 {[%clk 0:04:34.4]}
8... Bxf1 {[%clk 0:04:01.6]} 9. Kxf1 {[%clk 0:04:33.4]} 9... d6 {[%clk
0:03:51.5]} 10. Nf3 {[%clk 0:04:31.7]} 10... Ne4 {[%clk 0:03:41.5]} 11. Qc2
{[%clk 0:04:07.4]} 11... Nxc3 {[%clk 0:03:39.9]} 12. Nxc3 {[%clk 0:04:06.7]}
12... g6 {[%clk 0:03:31.5]} 13. g3 {[%clk 0:04:05.4]} 13... Bg7 {[%clk
0:03:28.8]} 14. Kg2 {[%clk 0:04:04.4]} 14... O-O {[%clk 0:03:23.8]} 15. a4
{[%clk 0:03:58.2]} 15... Nd7 {[%clk 0:03:21.7]} 16. Nb5 {[%clk 0:03:53.4]} 16...
Rfb8 {[%clk 0:03:08.6]} 17. Nd2 {[%clk 0:03:40.5]} 17... Ne5 {[%clk 0:03:00.4]}
18. f4 {[%clk 0:03:30.7]} 18... Ng4 {[%clk 0:02:54.1]} 19. Kf3 {[%clk
0:03:20.7]} 19... Nf6 {[%clk 0:02:49.9]} 20. Nc4 {[%clk 0:03:10.6]} 20... Qd8
{[%clk 0:02:38.9]} 21. e4 {[%clk 0:03:09.5]} 21... Qe8 {[%clk 0:02:23.2]} 22.
Ra3 {[%clk 0:03:00.3]} 22... Rxb5 {[%clk 0:02:22]} 23. axb5 {[%clk 0:02:58.9]}
23... Rxa3+ {[%clk 0:02:20.8]} 24. Nxa3 {[%clk 0:02:55]} 24... Nd7 {[%clk
0:02:12.9]} 25. Re1 {[%clk 0:02:49.4]} 25... Bd4 {[%clk 0:02:06.4]} 26. Nc4
{[%clk 0:02:41.2]} 26... Nf6 {[%clk 0:01:58.3]} 27. Qa4 {[%clk 0:02:33.8]} 27...
Kg7 {[%clk 0:01:50.8]} 28. Qa6 {[%clk 0:02:29.2]} 28... Qb8 {[%clk 0:01:42.2]}
29. e5 {[%clk 0:02:27]} 29... dxe5 {[%clk 0:01:40]} 30. fxe5 {[%clk 0:02:25]}
30... Nxd5 {[%clk 0:01:34.4]} 31. b6 {[%clk 0:02:08.2]} 31... Nb4 {[%clk
0:01:29.7]} 32. Qa7 {[%clk 0:02:03.8]} 32... Qc8 {[%clk 0:01:11.4]} 33. b7
{[%clk 0:01:56.7]} 33... Qc6+ {[%clk 0:01:10.5]} 34. Re4 {[%clk 0:01:42.6]}
34... Qa6 {[%clk 0:01:00.1]} 35. b8=Q {[%clk 0:01:29.6]} 35... Qxc4 {[%clk
0:00:55.7]} 36. Rxd4 {[%clk 0:01:06]} 36... Qf1+ {[%clk 0:00:53]} 37. Ke3 {[%clk
0:00:57.7]} 37... cxd4+ {[%clk 0:00:50.7]} 38. Kxd4 {[%clk 0:00:56.6]} 38...
Nc2+ {[%clk 0:00:47.8]} 39. Kc5 {[%clk 0:00:54.9]} 39... Qf2+ {[%clk 0:00:38.9]}
40. Kc6 {[%clk 0:00:53.5]} 40... Nd4+ {[%clk 0:00:34.4]} 41. Kd7 {[%clk
0:00:50.1]} 41... Qd2 {[%clk 0:00:15.2]} 42. Ke8 {[%clk 0:00:42.1]} 42... Nb5
{[%clk 0:00:14.4]} 43. Qxb5 {[%clk 0:00:36.4]} 43... Qg5 {[%clk 0:00:08.8]} 44.
Qbd7 {[%clk 0:00:29.1]} 44... h5 {[%clk 0:00:07.3]} 45. Qxe7 {[%clk 0:00:27.9]}
45... Qh6 {[%clk 0:00:06.5]} 46. Qxf7+ {[%clk 0:00:26.5]} 46... Kh8 {[%clk
0:00:05]} 47. Qf8+ {[%clk 0:00:24.7]} 47... Qxf8+ {[%clk 0:00:01.2]} 48. Kxf8
{[%clk 0:00:22.3]} 1-0

[Event "Live Chess"]
[Site "Chess.com"]
[Date "2024.06.02"]
[Round "-"]
[White "matt1979"]
[Black "Dhaydon19"]
[Result "0-1"]
[WhiteElo "1376"]
[BlackElo "2681"]
[TimeControl "300"]
[EndTime "22:43:02 PDT"]
[Termination "Dhaydon19 won by resignation"]

1. f4 {[%clk 0:04:55.6]} 1... d5 {[%clk 0:04:40.1]} 2. e3 {[%clk 0:04:53.5]}
2... Nf6 {[%clk 0:04:33.5]} 3. Nf3 {[%clk 0:04:51.2]} 3... b6 {[%clk 0:04:33]}
4. d3 {[%clk 0:04:47.5]} 4... Bb7 {[%clk 0:04:32]} 5. Be2 {[%clk 0:04:46.3]}
5... e6 {[%clk 0:04:31]} 6. O-O {[%clk 0:04:45]} 6... Nbd7 {[%clk 0:04:30.1]} 7.
b3 {[%clk 0:04:44]} 7... c5 {[%clk 0:04:28.5]} 8. Bb2 {[%clk 0:04:42.9]} 8...
Qc7 {[%clk 0:04:27]} 9. Nbd2 {[%clk 0:04:39.8]} 9... Ng4 {[%clk 0:04:24.2]} 10.
Rf2 {[%clk 0:04:11.9]} 10... Nxe3 {[%clk 0:04:18.1]} 11. Qc1 {[%clk 0:04:07.4]}
11... Ng4 {[%clk 0:04:16.6]} 12. Rf1 {[%clk 0:04:04.9]} 12... Qxf4 {[%clk
0:04:14.7]} 13. h3 {[%clk 0:03:57]} 13... Qe3+ {[%clk 0:04:10.9]} 14. Kh1 {[%clk
0:03:54.6]} 14... Nf2+ {[%clk 0:04:07.8]} 15. Rxf2 {[%clk 0:03:53]} 15... Qxf2
{[%clk 0:04:06.6]} 0-1

[Event "Live Chess"]
[Site "Chess.com"]
[Date "2024.06.02"]
[Round "-"]
[White "KeithArkell"]
[Black "MagnersCarlsberg2870"]
[Result "1-0"]
[WhiteElo "2417"]
[BlackElo "1816"]
[TimeControl "300"]
[EndTime "22:44:12 PDT"]
[Termination "KeithArkell won by checkmate"]

1. d4 {[%clk 0:04:57.2]} 1... d5 {[%clk 0:04:53.7]} 2. Nf3 {[%clk 0:04:55.8]}
2... Nf6 {[%clk 0:04:48.6]} 3. c4 {[%clk 0:04:55.4]} 3... e6 {[%clk 0:04:47]} 4.
Nc3 {[%clk 0:04:54.9]} 4... Bb4 {[%clk 0:04:45.5]} 5. cxd5 {[%clk 0:04:54.3]}
5... Nxd5 {[%clk 0:04:43.4]} 6. Bd2 {[%clk 0:04:52.7]} 6... Nxc3 {[%clk
0:04:40.1]} 7. bxc3 {[%clk 0:04:52.6]} 7... Be7 {[%clk 0:04:37.1]} 8. e4 {[%clk
0:04:51.8]} 8... O-O {[%clk 0:04:29.4]} 9. Bd3 {[%clk 0:04:51.7]} 9... Nd7
{[%clk 0:04:09.9]} 10. h4 {[%clk 0:04:50.1]} 10... Nf6 {[%clk 0:04:05.2]} 11. e5
{[%clk 0:04:47.3]} 11... Nd5 {[%clk 0:03:59.2]} 12. Bxh7+ {[%clk 0:04:45.9]}
12... Kxh7 {[%clk 0:03:55.7]} 13. Ng5+ {[%clk 0:04:45.8]} 13... Bxg5 {[%clk
0:03:45.8]} 14. hxg5+ {[%clk 0:04:43.7]} 14... Kg6 {[%clk 0:03:42.4]} 15. Qh5+
{[%clk 0:04:42.4]} 15... Kf5 {[%clk 0:03:41.6]} 16. g6+ {[%clk 0:04:32.5]} 16...
Ke4 {[%clk 0:03:37]} 17. Qf3# {[%clk 0:04:31.5]} 1-0